bitfinex/quotes_ETHUSD_20241203
["timestamp","ask_amount","ask_price","bid_price","bid_amount"]
[1733239649156,0.6934441,3579.3,3577.6,2.79513]
[1733239649157,0.29500012,3579.2,3578.2,2.79469]
[1733239649333,1.89976569,3579.1,3577.7,2.79509]
[1733239649505,0.96518974,3579.0,3578.2,0.56639236]
[1733239649710,0.55,3578.7,3577.8,2.79496]
[1733239649906,1.6294,3578.5,3577.1,1.507]
[1733239650155,0.72844124,3578.4,3577.1,1.507]
[1733239650461,0.43337841,3578.2,3576.7,1.507]
[1733239650609,0.55,3577.8,3576.8,0.55240737]
[1733239650960,0.55,3576.9,3575.5,2.11862904]
[1733239651158,0.04335832,3576.8,3576.2,2.79622]
[1733239651306,0.26025233,3576.7,3576.2,2.79622]
[1733239651507,0.44212409,3576.8,3575.7,2.79665]
[1733239651743,0.03495722,3576.7,3576.1,2.79632]
[1733239651944,0.41636673,3576.6,3575.7,2.79665]
[1733239652127,0.41636673,3576.5,3575.8,2.79651]
[1733239652330,0.41636673,3576.4,3576.2,2.79626]
[1733239652535,0.0083992,3576.8,3575.5,1.5566]
[1733239652839,0.67640038,3576.7,3576.4,2.79603]
[1733239653037,0.41624629,3576.6,3575.6,2.79673]
[1733239653340,0.41624629,3576.6,3576.5,2.79602]
[1733239654068,0.0083992,3576.8,3576.7,2.79587]
[1733239654680,0.68491655,3576.8,3576.7,2.79587]
[1733239655375,0.26863475,3576.8,3576.7,2.79587]
[1733239655587,0.0083992,3576.8,3576.7,2.79587]
[1733239655734,0.0083992,3576.8,3576.7,4.962962]
[1733239655735,9.2e-06,3576.8,3576.7,4.962962]
[1733239656439,4.38e-06,3577.1,3577.0,2.79563]
[1733239656936,0.26021659,3577.9,3577.0,2.79563]
[1733239657139,1.546,3578.3,3577.1,2.79556]
[1733239657455,0.67655386,3578.2,3578.1,2.79477]
[1733239658281,0.67655707,3578.2,3577.9,2.79491]
[1733239658440,0.26021426,3578.1,3577.1,0.559135]
[1733239658783,1.58094078,3578.3,3578.0,2.79485]
[1733239658939,0.26024461,3578.2,3578.0,2.79485]
[1733239659137,0.26024461,3578.1,3578.0,2.79485]
[1733239659579,1.546,3578.3,3578.1,2.79473]
[1733239659786,0.26029896,3578.2,3578.1,2.79477]
[1733239659985,1.546,3578.3,3578.2,2.7947]
[1733239660142,1.80629229,3578.3,3578.2,2.7260934]
[1733239660345,0.26029229,3578.3,3578.2,2.7260934]
[1733239660580,1.5609,3578.7,3578.4,2.7945]
[1733239660884,0.41654492,3578.6,3578.4,2.71813013]
[1733239661057,2.97664861,3579.1,3578.6,2.79432]
[1733239661389,1.93554913,3579.0,3578.0,2.79483]
[1733239661684,1.93554913,3579.0,3577.1,2.198735]
[1733239661685,3.53842533,3578.9,3577.8,2.79501]
[1733239661884,1.90092533,3578.8,3577.7,0.56028427]
[1733239662070,1.6375,3578.9,3578.7,2.79431]
[1733239662390,0.26038367,3578.8,3577.7,0.56028427]
[1733239662686,0.29532103,3578.7,3578.6,2.79438]
[1733239662840,0.26038367,3578.7,3578.6,2.79438]
[1733239663048,1.6375,3578.9,3578.8,2.79423]
[1733239663356,1.89780441,3578.9,3578.8,2.79423]
[1733239663576,1.89780441,3578.9,3578.3,2.79455]
[1733239663744,0.45008485,3578.8,3578.5,2.79444]
[1733239663947,0.26030441,3578.7,3577.7,1.5183]
[1733239664147,1.6375,3578.9,3577.8,2.79497]
[1733239664456,0.55,3578.7,3577.8,2.79497]
[1733239664802,5.0713,3578.5,3576.7,1.6447]
[1733239665089,0.55,3578.3,3576.7,2.19508993]
[1733239665388,1.25370856,3578.4,3577.1,2.79556]
[1733239665544,1.6528,3577.9,3577.4,2.7953]
[1733239665748,1.6528,3577.9,3576.9,2.79564]
[1733239666078,0.29529236,3577.8,3576.9,2.79564]
[1733239666285,0.03494662,3577.8,3577.3,2.79535]
[1733239666612,1.6528,3577.9,3577.3,2.79535]
[1733239666891,1.6528,3577.9,3577.5,2.79519]
[1733239667255,1.6528,3577.9,3577.3,2.7954]
[1733239667256,1.87308,3577.9,3577.3,2.7954]
[1733239667595,0.26040957,3577.8,3577.4,2.7953]
[1733239667803,1.87308,3577.9,3576.6,2.79595]
[1733239668002,0.29536065,3577.8,3577.4,2.79532]
[1733239668159,1.87308,3577.9,3577.4,2.79532]
[1733239668356,1.87308,3577.9,3576.7,2.79587]
[1733239668559,1.6528,3577.9,3577.7,2.79506]
[1733239668855,0.41666397,3578.3,3577.2,2.79543]
[1733239668856,1.5054,3578.3,3577.2,2.79543]
[1733239669103,1.5054,3578.3,3577.7,2.79509]
[1733239669255,1.5054,3578.3,3577.2,2.79543]
[1733239669256,1.5054,3578.3,3578.2,2.7947]
[1733239669451,1.76602371,3578.3,3578.2,2.7947]
[1733239669791,0.67716777,3579.0,3578.2,2.7947]
[1733239669792,1.5774,3578.8,3578.2,2.7947]
[1733239669992,0.78115299,3578.7,3577.7,1.5574]
[1733239670194,0.29554293,3578.6,3578.0,2.79478]
[1733239670406,0.26060657,3578.5,3577.7,2.79502]
[1733239670701,0.29554634,3578.4,3577.8,2.79499]
[1733239671029,0.26060657,3578.3,3577.8,2.79496]
[1733239671162,0.29554585,3578.2,3577.8,2.79496]
[1733239671500,0.03493928,3578.2,3577.2,2.12867186]
[1733239671675,0.55,3578.5,3577.2,2.12867186]
[1733239671868,0.26078343,3578.4,3577.3,2.7954]
[1733239672070,0.03494092,3578.5,3578.3,2.79462]
[1733239672263,0.26077112,3578.4,3578.3,2.79462]
[1733239672600,1.16638366,3578.7,3578.6,2.79438]
[1733239673411,1.16638366,3578.7,3578.6,3.4099371]
[1733239673708,1.16638366,3578.7,3578.6,2.79438]
[1733239674059,0.03492764,3579.2,3578.8,2.79423]
[1733239674261,0.03492989,3579.2,3578.6,2.79438]
[1733239674491,0.03492989,3579.2,3578.3,0.56657096]
[1733239674691,0.03492989,3579.2,3578.5,2.79446]
[1733239674891,0.03492996,3579.2,3578.5,2.79446]
[1733239675087,0.03492996,3579.2,3578.8,2.79416]
[1733239675553,0.03492996,3579.2,3578.9,2.79414]
[1733239675831,1.6634,3579.4,3579.2,2.79384]
[1733239675832,0.2605686,3579.3,3579.2,2.79384]
[1733239676032,1.6634,3579.4,3579.0,2.79405]
[1733239676238,0.03492674,3579.3,3578.8,2.7942]
[1733239676440,1.6634,3579.4,3578.2,0.54997887]
[1733239676441,1.6634,3579.4,3579.0,2.79406]
[1733239676734,0.03492865,3579.3,3578.2,0.54997887]
[1733239676896,1.6634,3579.4,3578.2,0.54997887]
[1733239676897,1.69832823,3579.4,3578.6,2.79436]
[1733239677095,1.69832823,3579.4,3578.3,2.79462]
[1733239677329,1.69832823,3579.4,3579.2,2.79391]
[1733239677330,1.6634,3579.4,3579.2,2.79391]
[1733239677522,1.6634,3579.4,3578.9,2.79415]
[1733239677736,1.6634,3579.4,3578.8,2.79419]
[1733239678093,1.6634,3579.4,3579.2,2.79387]
[1733239678320,1.6634,3579.4,3579.2,2.79384]
[1733239678833,1.6634,3579.4,3579.2,2.79391]
[1733239679137,1.6634,3579.4,3579.3,2.79384]
[1733239679596,1.55231105,3579.4,3579.3,2.79384]
[1733239680230,1.55231105,3579.4,3578.3,0.33445989]
[1733239680431,1.55231105,3579.4,3578.4,3.16243488]
[1733239680660,0.2604403,3579.7,3579.6,2.7936]
[1733239680802,44.0,3580.0,3578.5,4.35305]
[1733239681005,44.0,3580.0,3579.6,2.79353]
[1733239681225,44.0,3580.0,3579.9,2.79337]
[1733239681612,42.60335,3580.0,3579.9,3.352061]
[1733239681804,38.4134,3580.0,3579.9,3.352061]
[1733239682029,38.4134,3580.0,3579.9,3.91538376]
[1733239683013,37.01675,3580.0,3579.9,3.91538376]
[1733239683214,31.43015,3580.0,3579.9,3.91538376]
[1733239683454,31.43015,3580.0,3579.9,5.49368376]
[1733239683455,24.03182891,3580.0,3579.9,5.49368376]
[1733239683645,23.77533994,3580.0,3579.9,5.49368376]
[1733239684042,23.53742061,3580.0,3579.9,5.49368376]
[1733239684252,20.68232818,3580.0,3579.9,5.79368376]
[1733239684540,14.52372818,3580.0,3579.9,5.79368376]
[1733239685215,14.52372818,3580.0,3579.9,5.94553367]
[1733239685526,7.54047818,3580.0,3579.9,8.94553367]
[1733239685735,4.46337818,3580.0,3579.9,8.94553367]
[1733239685930,4.46337818,3580.0,3579.9,5.84553367]
[1733239686134,4.46337818,3580.0,3579.9,4.93499276]
[1733239686665,4.46337818,3580.0,3579.9,0.56332276]
[1733239686978,6.05207818,3580.0,3579.0,2.79406]
[1733239687146,6.05207818,3580.0,3578.3,4.298881]
[1733239687147,0.55,3579.9,3578.5,1.6176]
[1733239687464,0.55,3579.7,3578.8,2.79422]
[1733239687772,0.55,3579.3,3578.7,0.56332276]
[1733239688081,0.55,3579.3,3578.2,2.7947]
[1733239688260,0.55,3579.1,3578.4,2.79453]
[1733239688765,0.55,3579.1,3577.9,3.36060336]
[1733239688766,0.55,3579.3,3577.9,0.56573336]
[1733239688939,0.55,3578.9,3578.0,2.79478]
[1733239689279,0.55,3579.2,3578.3,2.79462]
[1733239689445,0.55,3579.3,3578.3,2.79462]
[1733239689775,0.55,3579.3,3578.1,0.33605134]
[1733239690081,0.55,3579.3,3577.8,2.79501]
[1733239690258,0.55,3579.3,3578.4,2.79451]
[1733239690573,0.55,3579.3,3578.9,2.79407]
[1733239690939,0.55,3579.3,3578.4,0.545269]
[1733239691134,0.55,3579.3,3578.6,2.79431]
[1733239691459,0.55,3579.3,3578.4,0.545269]
[1733239691642,0.55,3579.3,3578.5,0.3339819]
[1733239691970,0.03492653,3579.2,3578.7,2.79427]
[1733239692177,0.55,3579.3,3578.5,0.3339819]
[1733239692178,1.5255,3579.4,3578.8,2.79423]
[1733239692346,1.5255,3579.4,3578.5,0.3339819]
[1733239692675,1.5255,3579.4,3578.4,0.545269]
[1733239692676,0.55,3579.3,3578.4,0.545269]
[1733239692971,1.5255,3579.4,3578.4,3.339769]
[1733239693240,0.25958427,3579.9,3578.5,1.5105]
[1733239693241,0.55,3579.8,3578.5,1.5105]
[1733239693394,4.46337818,3580.0,3578.8,4.298881]
[1733239693601,4.46337818,3580.0,3579.9,2.79337]
[1733239693745,4.46337818,3580.0,3579.9,3.352063]
[1733239693950,4.46337818,3580.0,3579.4,1.5105]
[1733239694187,4.46337818,3580.0,3579.7,2.79351]
[1733239694348,4.46337818,3580.0,3579.8,2.79344]
[1733239694551,4.46337818,3580.0,3579.7,2.79352]
[1733239695146,4.46337818,3580.0,3579.7,2.79345]
[1733239695350,4.46337818,3580.0,3579.1,0.55024531]
[1733239695351,4.46337818,3580.0,3579.6,2.7936]
[1733239695598,4.46337818,3580.0,3579.0,1.5653]
[1733239695599,0.55,3579.9,3579.0,1.5653]
[1733239695804,4.46337818,3580.0,3579.3,2.79384]
[1733239695967,4.46337818,3580.0,3579.9,2.79337]
[1733239696168,4.46337818,3580.0,3579.9,4.32307]
[1733239696686,4.46337818,3580.0,3579.1,3.229907]
[1733239696687,4.46337818,3580.0,3579.4,2.19477025]
[1733239697094,4.46337818,3580.0,3579.6,2.79354]
[1733239697478,0.03491765,3579.9,3579.6,2.79354]
[1733239697792,0.55,3579.9,3579.1,0.435947]
[1733239697994,0.55,3579.9,3579.6,2.7936]
[1733239698507,0.55,3579.9,3579.4,2.79374]
[1733239698804,0.55,3579.9,3579.2,3.55257509]
[1733239698951,4.46337818,3580.0,3579.9,2.79337]
[1733239699373,4.46337818,3580.0,3579.7,2.79352]
[1733239699574,0.55,3579.9,3579.1,3.229927]
[1733239699778,0.55,3579.7,3579.3,2.79382]
[1733239699984,1.5639,3579.8,3579.3,0.279382]
[1733239700198,4.46337818,3580.0,3579.9,2.79337]
[1733239704158,4.46337818,3580.0,3579.0,1.6623]
[1733239704505,4.46337818,3580.0,3579.8,2.79342]
[1733239704706,4.46337818,3580.0,3579.1,4.44423171]
[1733239704891,4.46337818,3580.0,3579.9,2.79337]
[1733239705426,4.46337818,3580.0,3579.9,3.352061]
[1733239706097,4.46337818,3580.0,3579.3,2.79378]
[1733239706420,4.46337818,3580.0,3579.3,0.57209625]
[1733239706707,4.46337818,3580.0,3579.0,1.6623]
[1733239706708,4.46337818,3580.0,3579.8,2.79345]
[1733239706918,4.46337818,3580.0,3579.9,2.79337]
[1733239707071,4.46337818,3580.0,3579.9,8.31019951]
[1733239707269,4.46337818,3580.0,3579.9,9.42057346]
[1733239707770,4.46337818,3580.0,3579.9,9.99032162]
[1733239708610,4.46337818,3580.0,3579.9,9.69987452]
[1733239708804,6.11057818,3580.0,3578.6,1.633]
[1733239709012,6.11057818,3580.0,3579.7,2.79346]
[1733239709181,4.46337818,3580.0,3579.9,2.79337]
[1733239709509,4.46337818,3580.0,3579.5,2.79366]
[1733239709510,4.46337818,3580.0,3579.5,2.79367]
[1733239709969,4.46337818,3580.0,3579.1,3.34307625]
[1733239709970,0.03491915,3579.9,3579.1,0.54913625]
[1733239710169,4.46337818,3580.0,3579.2,2.79392]
[1733239710170,1.6472,3579.7,3579.2,2.79392]
[1733239710379,1.6472,3579.7,3579.2,3.51675858]
[1733239710618,1.6472,3579.7,3579.4,2.79371]
[1733239710820,1.6472,3579.7,3579.2,0.72283858]
[1733239710991,1.6472,3579.7,3579.1,0.54913625]
[1733239711182,0.03492197,3579.6,3579.1,0.54913625]
[1733239711536,0.55,3579.6,3579.1,0.54913625]
[1733239711680,0.55,3579.4,3579.1,0.54913625]
[1733239711879,0.55,3579.4,3578.1,1.633]
[1733239712080,0.55,3579.6,3578.2,0.59725823]
[1733239712281,0.55,3579.4,3579.0,0.54824162]
[1733239712714,1.6472,3579.7,3579.0,0.54824162]
[1733239712715,0.55,3579.6,3579.0,0.54824162]
[1733239713020,0.260686,3579.5,3579.0,3.34225162]
[1733239713198,0.55,3579.6,3579.0,0.54824162]
[1733239713395,0.2606727,3579.5,3579.0,0.54824162]
[1733239713602,0.55,3579.3,3579.0,3.34230162]
[1733239713918,0.55,3579.3,3578.8,2.79421]
[1733239714227,2.06427043,3579.7,3578.6,2.79436]
[1733239714228,0.81066185,3579.6,3578.6,2.79436]
[1733239714438,1.68212656,3579.7,3577.7,1.6595]
[1733239714439,1.5035,3579.3,3577.7,1.6595]
[1733239714721,0.55,3578.8,3577.2,1.6595]
[1733239714921,2.1736,3578.6,3577.2,1.6595]
[1733239715125,0.55,3578.4,3577.3,2.79533]
[1733239715425,0.55,3578.4,3576.9,2.79571]
[1733239715426,0.55,3578.0,3577.5,2.7952]
[1733239715815,0.55,3578.0,3577.3,2.79538]
[1733239716013,0.03494022,3577.9,3577.4,2.79531]
[1733239716564,0.03494022,3577.9,3577.3,2.79539]
[1733239716724,0.55,3578.0,3577.3,0.279539]
[1733239716933,0.55,3578.0,3576.9,0.57085006]
[1733239717251,1.6236,3578.1,3577.6,2.79514]
[1733239717457,1.6236,3578.1,3577.7,2.79507]
[1733239717614,1.6236,3578.1,3577.5,2.79524]
[1733239717818,1.6236,3578.1,3577.8,2.795]
[1733239718016,0.55,3578.0,3577.4,2.79525]
[1733239718340,0.76736,3578.0,3576.9,2.79571]
[1733239718539,0.55,3577.7,3576.9,2.79571]
[1733239718836,0.55,3577.7,3576.4,1.5392]
[1733239718837,0.55,3577.7,3577.0,2.7956]
[1733239719354,0.55,3577.7,3576.4,1.5392]
[1733239719527,0.55,3577.7,3577.1,2.79555]
[1733239719721,0.55,3577.7,3576.5,0.55541261]
[1733239719722,0.55,3577.7,3577.2,2.79548]
[1733239719972,0.55,3577.7,3576.5,0.55541261]
[1733239720271,0.55,3577.7,3576.9,2.79566]
[1733239720640,0.55,3577.7,3577.2,2.79547]
[1733239721038,0.55,3577.7,3576.7,2.79587]
[1733239721242,0.55,3577.7,3577.0,2.79562]
[1733239721631,0.55,3577.7,3576.6,0.48906426]
[1733239721825,0.55,3577.7,3577.3,2.79535]
[1733239722267,0.58494205,3577.7,3577.3,2.79535]
[1733239722435,0.55,3577.7,3577.4,2.79532]
[1733239723130,1.6598,3577.8,3577.5,2.79522]
[1733239724086,1.6598,3577.8,3576.5,0.55541261]
[1733239724285,1.6598,3577.8,3577.5,2.79521]
[1733239724773,0.55,3577.7,3576.6,0.92303149]
[1733239724977,1.6598,3577.8,3576.7,2.79587]
[1733239725165,1.6598,3577.8,3577.5,2.79523]
[1733239725363,1.6598,3577.8,3576.8,2.79579]
[1733239725560,0.25954815,3578.5,3578.2,2.7947]
[1733239725561,1.5633,3578.3,3578.2,2.7947]
[1733239725800,1.5633,3578.3,3577.4,4.33958228]
[1733239725801,0.25954815,3578.5,3577.4,4.33958228]
[1733239726022,0.2944824,3578.5,3577.6,2.79516]
[1733239726187,1.6297,3578.4,3577.3,2.79533]
[1733239726376,0.2944824,3578.5,3576.9,2.79564]
[1733239726377,1.6297,3578.2,3576.9,2.79564]
[1733239726577,1.6297,3577.9,3576.6,0.92303149]
[1733239726817,1.6297,3577.7,3576.2,2.79626]
[1733239726978,1.6297,3577.5,3575.5,2.79681]
[1733239727329,4.33958228,3578.0,3575.4,1.5398]
[1733239727330,2.1388,3577.0,3575.4,1.5398]
[1733239727618,1.5888,3577.0,3575.4,5.87938228]
[1733239727821,1.5888,3577.0,3576.9,2.79571]
[1733239728024,1.5888,3577.0,3576.6,2.79588]
[1733239728177,0.57615929,3576.9,3576.3,3.36167183]
[1733239728527,0.57615929,3576.9,3576.1,2.79632]
[1733239728684,0.54121181,3576.9,3576.2,2.79625]
[1733239728882,0.54121181,3576.9,3576.2,0.279625]
[1733239729203,0.03495215,3576.8,3576.1,0.55595982]
[1733239729526,1.558,3576.7,3575.5,1.13460593]
[1733239729819,1.558,3576.5,3575.6,2.79671]
[1733239730118,1.558,3576.5,3575.5,0.5466677]
[1733239730341,0.55,3576.4,3575.5,0.5466677]
[1733239730821,0.55,3576.4,3574.9,5.96258228]
[1733239731076,1.558,3576.5,3575.4,4.33958228]
[1733239731276,1.5592,3577.0,3576.9,2.79571]
[1733239731769,1.5784,3578.0,3576.3,2.79618]
[1733239731985,1.5784,3578.0,3576.4,4.33958228]
[1733239732134,0.03494216,3577.9,3577.1,2.79555]
[1733239732477,1.5784,3577.8,3576.8,2.79576]
[1733239732628,1.5784,3577.6,3576.6,2.79594]
[1733239732973,0.03494937,3577.5,3576.2,2.79621]
[1733239733179,1.68084937,3577.5,3576.3,2.79611]
[1733239733477,2.1959,3577.3,3576.3,2.79611]
[1733239733648,2.1959,3577.3,3575.7,1.5425]
[1733239733649,0.55,3577.1,3576.6,2.79592]
[1733239733844,0.55,3577.1,3576.0,3.89361114]
[1733239734172,1.6459,3577.3,3577.2,2.79548]
[1733239734373,1.6459,3577.3,3577.0,2.79562]
[1733239734683,1.6459,3577.3,3576.6,2.79594]
[1733239734884,1.6459,3577.3,3577.2,2.79548]
[1733239735086,1.5049,3577.9,3576.7,2.79587]
[1733239735443,1.5049,3577.9,3577.5,2.79524]
[1733239735982,1.5049,3577.9,3576.8,2.79574]
[1733239736289,0.55,3577.8,3577.2,2.79546]
[1733239736493,0.03494309,3577.7,3576.1,1.6574]
[1733239736700,0.75,3577.2,3574.3,1.6574]
[1733239736845,2.1372,3576.1,3574.5,2.79759]
[1733239737045,2.1372,3576.1,3575.3,2.79695]
[1733239737278,0.55,3575.9,3574.4,3.89361114]
[1733239737480,0.55,3575.9,3575.1,2.7971]
[1733239737682,0.55,3575.9,3574.5,0.60970446]
[1733239738260,1.5872,3575.8,3574.8,2.79735]
[1733239738460,0.55,3575.7,3575.1,2.79707]
[1733239738874,0.55,3575.7,3575.3,2.79694]
[1733239739284,0.55,3575.7,3574.5,1.17062261]
[1733239739447,1.5872,3575.8,3574.6,0.55671126]
[1733239739660,1.5872,3575.8,3575.5,2.7968]
[1733239740150,0.55,3575.7,3575.3,2.79696]
[1733239740348,0.55,3575.7,3574.6,0.55671126]
[1733239740544,0.55,3575.7,3574.9,2.7972]
[1733239740747,1.5872,3575.8,3574.9,0.33539113]
[1733239740985,1.5872,3575.8,3575.7,2.79665]
[1733239741143,1.5872,3575.8,3575.5,2.79678]
[1733239741461,1.5872,3575.8,3575.3,2.79693]
[1733239741666,1.5872,3575.8,3575.4,2.79684]
[1733239741984,1.5872,3575.8,3575.3,2.79695]
[1733239742292,0.55,3575.7,3575.3,2.79695]
[1733239742788,1.5872,3575.8,3575.3,2.79695]
[1733239743086,1.5872,3575.8,3575.5,2.7968]
[1733239743261,1.5872,3575.8,3575.6,2.79669]
[1733239744089,1.5872,3575.8,3575.4,2.79687]
[1733239744391,1.5872,3575.8,3574.9,0.33539113]
[1733239744607,0.03496323,3575.7,3575.0,2.79715]
[1733239744782,1.74592,3575.8,3574.0,6.69154114]
[1733239744955,0.81074271,3575.7,3575.1,2.79709]
[1733239745289,0.55,3575.7,3574.7,2.79739]
[1733239745496,1.5872,3575.8,3574.6,2.79751]
[1733239745653,1.5872,3575.8,3574.8,2.79735]
[1733239745993,1.5872,3575.8,3575.4,2.79685]
[1733239746696,1.5872,3575.8,3575.0,0.57022553]
[1733239746879,1.5872,3575.8,3574.8,2.7973]
[1733239747078,1.5872,3575.8,3574.9,2.79728]
[1733239747261,1.5872,3575.8,3575.0,0.35224839]
[1733239747462,1.5872,3575.8,3575.4,2.79688]
[1733239747686,1.5872,3575.8,3575.7,2.79665]
[1733239747901,3.72388308,3577.0,3576.0,2.79642]
[1733239747902,1.5944,3576.2,3576.0,2.79642]
[1733239748053,0.43450807,3576.8,3575.2,5.52591114]
[1733239748054,1.5944,3576.6,3576.4,2.79608]
[1733239748392,0.03495153,3576.5,3575.2,1.6323]
[1733239748601,1.5944,3576.6,3576.3,2.79611]
[1733239748803,0.03495201,3576.5,3575.8,0.55376379]
[1733239748967,0.03495201,3576.5,3575.3,0.47816484]
[1733239748968,0.03495612,3576.5,3575.5,2.79681]
[1733239749170,1.5944,3576.6,3576.1,2.7963]
[1733239749932,1.5944,3576.6,3575.7,0.56960979]
[1733239750230,1.5944,3576.6,3576.5,2.79602]
[1733239750828,1.85231476,3577.0,3575.7,0.56960979]
[1733239751028,0.2956604,3576.9,3575.8,0.33663298]
[1733239751327,1.5916,3577.0,3575.2,4.42928]
[1733239751328,0.26073659,3576.8,3576.4,2.79603]
[1733239751631,0.26073659,3576.8,3575.2,4.42928]
[1733239751632,1.5694,3576.5,3576.0,2.79641]
[1733239751930,1.5694,3576.5,3576.0,2.7964]
[1733239751931,0.26075645,3576.4,3576.0,2.7964]
[1733239752110,1.5694,3576.5,3576.0,2.7964]
[1733239752483,0.29572919,3576.4,3576.0,2.7964]
[1733239752683,0.29572919,3576.4,3575.8,0.57162531]
[1733239752684,0.52155219,3576.4,3576.1,2.79629]
[1733239752886,1.5694,3576.5,3575.9,2.79649]
[1733239753128,1.5694,3576.5,3576.0,0.33681153]
[1733239753321,1.5694,3576.5,3576.2,2.79626]
[1733239753527,0.26078689,3576.4,3575.8,0.57162531]
[1733239753723,0.26078689,3576.3,3575.8,0.57162531]
[1733239753941,0.17494584,3577.1,3575.8,0.57162531]
[1733239753942,1.5441,3576.9,3576.7,2.79583]
[1733239754139,0.26078092,3576.8,3576.7,2.79587]
[1733239754431,0.1748977,3577.8,3576.8,1.6282]
[1733239754628,0.5215354,3577.7,3577.6,2.79516]
[1733239754787,0.2607669,3577.7,3577.6,2.79516]
[1733239754987,1.6666,3578.3,3578.1,2.79474]
[1733239755242,0.93859298,3578.2,3578.1,2.79477]
[1733239755389,0.26072027,3578.2,3577.5,2.7952]
[1733239755736,0.97351164,3578.1,3577.5,2.79523]
[1733239755887,2.60521883,3578.0,3576.6,2.79589]
[1733239756083,0.93857613,3577.9,3577.8,2.79501]
[1733239756315,0.52143118,3577.9,3577.8,2.79501]
[1733239756498,0.26071559,3577.9,3577.8,2.79501]
[1733239756713,1.6666,3578.0,3577.8,2.79501]
[1733239756899,0.26080016,3577.9,3577.8,2.79501]
[1733239757104,0.52161721,3577.9,3577.7,2.79508]
[1733239757300,0.52161721,3577.9,3577.3,2.7954]
[1733239757301,0.26080016,3577.8,3577.3,2.79532]
[1733239757617,0.52155342,3577.7,3577.3,2.79532]
[1733239757818,0.9672037,3577.9,3577.3,2.79532]
[1733239757990,0.52151606,3577.8,3577.1,2.79554]
[1733239758191,0.52151606,3577.8,3576.8,2.79575]
[1733239758192,0.52151606,3577.7,3577.2,2.79547]
[1733239758588,0.2607504,3577.6,3577.2,2.79547]
[1733239758792,0.96719598,3577.9,3576.8,3.34215279]
[1733239759033,0.93869908,3577.8,3577.3,2.79539]
[1733239759212,0.55,3577.9,3576.8,4.06572918]
[1733239759213,0.26074803,3577.7,3577.5,2.79523]
[1733239759516,0.55,3577.9,3576.9,2.79571]
[1733239759707,0.52141862,3577.8,3577.3,2.7954]
[1733239759928,0.55,3577.9,3576.8,1.26997918]
[1733239760233,0.26071426,3577.8,3577.0,2.79562]
[1733239760433,1.10232744,3577.9,3576.6,3.89361114]
[1733239760434,0.26071426,3577.7,3576.6,3.89361114]
[1733239760608,0.034944,3577.8,3576.6,3.89361114]
[1733239760810,0.034944,3577.9,3576.7,0.55017276]
[1733239761024,1.22639988,3577.8,3577.1,2.79548]
[1733239761220,1.22639988,3577.8,3576.7,0.55017276]
[1733239761221,0.73083103,3577.7,3576.7,0.55017276]
[1733239761390,0.47012832,3577.7,3576.9,2.7957]
[1733239761590,1.84963208,3577.6,3577.0,2.79562]
[1733239761817,0.03494408,3577.5,3576.8,2.79578]
[1733239762151,0.55,3577.1,3575.4,2.79688]
[1733239762299,0.58495229,3577.0,3575.5,0.48634448]
[1733239762642,0.55,3577.0,3576.5,2.79602]
[1733239762932,1.6539,3577.1,3576.6,2.79588]
[1733239763134,1.6491,3576.8,3575.1,3.89361114]
[1733239763341,0.55,3576.7,3576.1,2.79633]
[1733239763642,1.6491,3576.8,3576.3,2.79617]
[1733239763936,1.6491,3576.8,3576.2,2.79624]
[1733239764093,1.6491,3576.8,3575.5,5.54341114]
[1733239764297,1.6491,3576.8,3576.4,2.79607]
[1733239765042,1.6491,3576.8,3575.5,8.34021114]
[1733239765332,1.6491,3576.8,3575.6,0.93778377]
[1733239765553,1.6491,3576.8,3576.7,2.79587]
[1733239765845,1.5182,3577.3,3576.8,2.79574]
[1733239766133,1.5182,3577.3,3576.6,2.79593]
[1733239766337,0.03494828,3577.2,3576.3,2.79612]
[1733239766538,0.03494828,3577.2,3576.4,2.79609]
[1733239766742,0.21634567,3577.2,3576.4,2.79609]
[1733239767030,0.21634567,3577.2,3575.6,0.93778377]
[1733239767031,0.21634567,3577.2,3576.5,2.79602]
[1733239767644,0.55,3577.1,3576.2,0.54710939]
[1733239767848,1.55315049,3577.0,3576.2,3.34329939]
[1733239767997,1.55315049,3577.0,3576.3,2.79618]
[1733239768202,0.22845479,3576.9,3576.0,2.79634]
[1733239768479,0.22845479,3576.9,3575.6,3.73448377]
[1733239768735,0.22845479,3576.9,3575.6,0.93778377]
[1733239768942,0.22845479,3576.9,3576.2,2.79625]
[1733239769149,1.6142,3576.6,3575.7,2.79665]
[1733239769312,1.6142,3576.6,3575.1,5.46771114]
[1733239769499,1.6142,3576.6,3575.4,0.54766915]
[1733239769698,1.6142,3576.6,3576.0,2.79634]
[1733239769936,1.6142,3576.6,3575.5,2.79681]
[1733239770111,1.6142,3576.6,3576.1,2.7963]
[1733239770320,1.6142,3576.6,3576.2,2.79624]
[1733239771038,1.6142,3576.6,3576.1,2.79632]
[1733239771194,1.6142,3576.6,3576.3,2.79618]
[1733239771395,1.6142,3576.6,3576.5,2.79602]
[1733239771631,1.6519,3577.0,3576.6,2.79591]
[1733239772814,1.6519,3577.0,3576.4,2.79609]
[1733239773016,1.6519,3577.0,3575.6,1.88694791]
[1733239773212,0.03494873,3576.9,3576.5,2.79602]
[1733239773568,0.03494873,3576.9,3575.8,2.79657]
[1733239773569,0.03495109,3576.9,3575.8,2.79657]
[1733239773851,0.03495109,3576.9,3575.7,0.91250982]
[1733239773852,0.03495109,3576.9,3576.1,2.79632]
[1733239774165,0.55,3576.8,3575.4,0.54766915]
[1733239774363,0.55,3576.8,3575.9,2.79643]
[1733239774546,0.22368511,3576.7,3576.1,2.79633]
[1733239775027,0.22368511,3576.7,3575.4,0.54766915]
[1733239775210,0.55,3576.8,3576.2,2.79625]
[1733239775412,0.55,3576.9,3576.2,2.79625]
[1733239775610,0.55,3576.9,3576.3,2.79618]